{"text_format":"1","workbook":"xlsx","n_sheets":1,"sheets":["Scelta strumento"],"not_rendered":{"charts":0,"images":1,"macros":0,"external_links":4,"defined_names":30,"comments":0,"pivot_tables":0},"unopened":[],"bounds":{"document_bytes":16777216,"sheet_cells":100000,"rows_first":2000,"rows_last":500,"rows_between":2000,"halvings":0,"cell_chars":16384,"cell_head_chars":4096},"cells_cut":0,"cells_raw":0,"read":"whole","date_system":"1900"}

{"sheet":"Scelta strumento","index":0,"n_rows":22,"n_cols":12,"rows_kept":22,"cut":false,"hidden":false,"merged":[[21,0,21,1],[0,1,0,10],[1,0,1,10],[2,0,2,1],[2,2,2,4],[2,5,2,7],[2,8,2,10]]}
["Impresa:","Esempio S.r.l.",null,null,null,null,null,null,null,null,null,{"$f":"TODAY()","v":"2023-04-13"}]
["Griglia per la scelta dello strumento giuridico più idoneo al risanamento aziendale"]
["Aspetti da salvaguardare o considerare",null,"Composizione negoziata (all'esito delle trattative)            [Dal 15/7/2022: Art. 23, comma 1, CCII]",null,null,"Soluzioni alternative (per insuccesso trattative)                                                                           [Dal 15/7/2022: Art. 23, comma 2, CCII]",null,null,"Altri strumenti di regolazione della crisi e dell'insolvenza (per insuccesso trattative)                                                                    [Dal 15/7/2022: Art. 23, comma 2, lett. d) CCII]"]
["Variabile","Peso (soggettivo)","Art. 23 c 1 lett a) ","Art. 23 c 1 lett b) ","Art. 23 c 1 lett c) ","Art. 23 c 2 lett a) ","Art. 23 c 2 lett. b) ","Art. 23 c 2 lett. c) ","Art. 23 c 2 lett. d) ","Art. 23 c 2 lett. d) ","Art. 23 c 2 lett. d) "]
["Vantaggi ricercati","% importanza","Contratto con uno o più creditori (se assicura continuità aziendale per 2 anni)","Convenzione di moratoria ai sensi dell'articolo 62","Accordo con i creditori sottoscritto anche dall'esperto con effetti di cui all'art. 166, 3° co. lett d) (senza attestatore)","Piano attestato di risanamento di cui all'articolo 56","Domanda di omologazione di un accordo di ristrutturazione dei debiti ai sensi degli articoli 57, 60 e 61 con % di cui all'art. 61, c. 2, lett. c), ridotta al 60% ","Domanda di concordato semplificato per la liquidazione del patrimonio ex 25 sexies","Accordo ristrutturazione (con almeno 60% dei creditori e di pagare nei 120 gg dissenzienti)","Concordato in continuità aziendale ","Concordato preventivo liquidatorio con cessione dei beni "]
["Vantaggi da cram down (Incapienza attivo)",0,null,null,null,null,{"$f":"IF($I$5=\"Manca adesione di almeno il 60% dei crediti\", 0,1)","v":1},1,{"$f":"IF($I$5=\"Manca adesione di almeno il 60% dei crediti\", 0,1)","v":1},1,1]
["Continuità aziendale",1,1,1,1,1,1,null,1,1]
["Pagamento debiti pregressi",1,1,1,1,1,1,null,1,1]
["Mantenimento affidamenti bancari",1,1,1,1,1,1,null,1,1]
["Mantenimento buoni rapporti con fornitori (strategici)",1,1,1,1,1,1,null,1,1]
["Misure protettive",1,1,1,1,1,1,1,1,1,1]
["Sospensione misure scioglimento e ricapitalizzazione",1,1,1,1,1,1,1,1,1,1]
["Transazione fiscale e previdenziale ",0,null,null,null,null,1,1,1,1,1]
["Cessione azienda con esclusione 2560 cc",1,1,1,1,1,1,1,1,1,1]
["Finanziamenti prededucibili",1,1,1,1,1,1,1,1,1]
["Rinegoziazione contratti ad esecuzione differita (Covid etc)",0,1,1,1,1,1,1,1,1]
["Misure premiali art. 25 bis CCII: interessi che maturano durante la CN sui debiti tributari dell'imprenditore sono ridotti alla misura legale",0,1,1,1,null,1]
["Misure premiali art. 25 bis CCII: riduzione alla misura minima, ove il termine per il pagamento scada dopo la presentazione della istanza di accesso alla composizione negoziata, delle sanzioni tributarie per le quali è prevista l'applicazione in misura ridotta in caso di pagamento entro un determinato termine dalla comunicazione dell'ufficio che le irroga",0,1,1,1,1,1,1,1,1]
["Misure premiali art. 25 bis CCII: sanzioni e interessi sui debiti tributari sorti prima del deposito dell'istanza di CN ridotti della metà (Cfr rottamazione quater: misura contingente per tutte le imprese anche non in crisi)",0,null,null,null,1,1,1,1,1]
["Misure premiali art. 25 bis CCII: In caso di pubblicazione nel RI l'AE concede, previa istanza sottoscritta anche dall'esperto, un piano di rateazione fino a 120 rate mensili delle imposte sul reddito, ritenute alla fonte, IVA e IRAP non ancora iscritte a ruolo, e relativi accessori. Si applicano, in quanto compatibili, le disposizioni dell'art. 19 del dpr 602/73 (Ruoli). ",1,1,null,1]
["Misure premiali art. 25 bis CCII: Dalla pubblicazione nel RI del contratto e dell'accordo di cui all'articolo 23, comma 1, lettere a) e c), o degli accordi di cui all'articolo 23, comma 2, lett. b) si applicano gli articoli 88, comma 4-ter, e 101, comma 5, del TUIR. [Prevista anche per concordato e accordo ristrutturazione]",1,1,null,1,null,{"$f":"IF($I$5=\"Manca adesione di almeno il 60% dei crediti\", 0,1)","v":1},1,{"$f":"IF($I$5=\"Manca adesione di almeno il 60% dei crediti\", 0,1)","v":1},1]
["Scoring",null,{"$f":"($B6*C6)+($B7*C7)+($B8*C8)+($B9*C9)+($B10*C10)+($B11*C11)+($B12*C12)+($B13*C13)+($B14*C14)+($B15*C15)+($B16*C16)+($B17*C17)+($B18*C18)+($B19*C19)+($B20*C20)+($B21*C21)","v":10},{"$f":"($B6*D6)+($B7*D7)+($B8*D8)+($B9*D9)+($B10*D10)+($B11*D11)+($B12*D12)+($B13*D13)+($B14*D14)+($B15*D15)+($B16*D16)+($B17*D17)+($B18*D18)+($B19*D19)+($B20*D20)+($B21*D21)","v":8},10,8,9,5,9,9,3]